[Event "86th Tata Steel Challengers 2024"]
[Site "Scheveningen"]
[Date "2024.01.23"]
[Round "9.7"]
[White "Mendonca, Leon Luke"]
[Black "Santos Latasa, Jaime"]
[Result "1-0"]
[ECO "C54"]
[WhiteElo "2608"]
[BlackElo "2615"]
[Annotator "TA"]
[PlyCount "221"]
[EventDate "2024.01.02"]
[EventType "tourn"]
[EventCountry "NED"]
[SourceTitle "playchess.com"]
[Source "ChessBase"]
[SourceQuality "1"]
[TimeControl "40/6000+30:20/3000+30:900+30"]

{[%evp 49,221,-158,-55,-81,0,0,0,0,0,-18,-10,-18,-18,-18,-18,-18,-18,-18,-18,-20,-18,-18,-18,-18,0,0,0,0,0,0,8,8,8,8,8,8,8,8,38,39,39,8,73,73,73,73,73,73,73,73,73,73,73,73,73,73,97,73,73,73,73,73,73,76,77,76,12738,12738,12738,12738,12731,12731,12731,12731,12731,12731,12731,12731,12731,12731,12731,12731,12731,12731,12731,12731,12731,12731,12731,12731,12553,12544,12731,12731,12731,12731,12680,12586,12385,12029,12731,12705,12691,12650,12643,3338,12615,12592,12422,12360,12244,12168,9657,10810,6314,5726,12798,12798,12798,12789,9704,5369,5320,661,12799,12799,12799,12799,12812,12799,12798,12798,12799,12728,12804,12312,12477,6402,5352,5344,12803,12769,7214,7148,12822,12823,12823,12823,29981,12829,29984,29985,29987,29987,29988,29989,29989,29990,29990,29988,29993,29991,29994,29995,29995,29995,29996,29996,29996,29996,29996,29997,29997,29998]} 1. e4 {[%emt 0:01:05]} e5 {[%emt 0:00:06]} 2. Nf3 {[%emt 0:00:15]} Nc6 {[%emt 0:00:05]} 3. Bc4 {[%emt 0:00:37]} Bc5 {[%emt 0:00:06]} 4. d3 {[%emt 0:00:31]} Nf6 {[%emt 0:00:05]} 5. c3 {[%emt 0:00:46]} d6 {[%emt 0:00:12]} 6. Bg5 {[%emt 0:01:04]} h6 {[%emt 0:00:27]} 7. Bh4 {[%emt 0:00:08]} a6 {[%emt 0:06:48]} 8. a4 {[%emt 0:01:51]} Ba7 {[%emt 0:00:16]} 9. Nbd2 {[%emt 0:00:30]} Qe7 {[%emt 0:00:40]} 10. O-O {[%emt 0:01:45]} g5 {[%emt 0:01:22]} 11. Bg3 {[%emt 0:00:05]} Nh7 {[%emt 0:00:32]} 12. b4 {[%emt 0:15:59]} Nf8 {[%emt 0:01:20]} 13. Bd5 {[%emt 0:03:17]} Ng6 {[%emt 0:01:29]} 14. b5 {[%emt 0:00:52]} Na5 {[%emt 0:02:12]} 15. Kh1 {[%emt 0:04:52]} g4 {[%emt 0:12:02]} 16. Ng1 {[%emt 0:00:43]} h5 {[%emt 0:01:23]} 17. h3 {[%emt 0:02:01]} Be6 {[%emt 0:08:14]} 18. bxa6 {[%emt 0:29:25]} Bxd5 {[%emt 0:01:32]} 19. exd5 {[%emt 0:00:02]} bxa6 {[%emt 0:02:03]} 20. d4 {[%emt 0:00:41]} f5 {[%emt 0:02:50]} 21. Qe2 {[%emt 0:04:12]} O-O {[%emt 0:04:53]} 22. Rae1 {[%emt 0:04:55]} f4 {[%emt 0:04:12]} 23. Bh2 {[%emt 0:03:29]} Qg5 {[%emt 0:00:53]} 24. Qd3 {[%emt 0:06:36]} Qf5 {[%emt 0:03:49]} 25. Re4 {[%emt 0:00:38]} Kg7 {[%emt 0:06:53]} (25... exd4 $17 {Threatens to win with ...c6.} 26. cxd4 Qxd5) 26. Ne2 $1 $15 {[%emt 0:07:38]} Kh7 {[%emt 0:07:47]} (26... Rab8 $1 $17 {And now ...Rb2 would win.} 27. dxe5 dxe5) 27. f3 $1 $11 {[%emt 0:03:30]} (27. Qxa6 $2 Nb3 28. hxg4 hxg4 $19) 27... gxh3 {[%emt 0:06:14]} 28. g3 {[%emt 0:01:05]} fxg3 {[%emt 0:14:29]} 29. Nxg3 {[%emt 0:00:21]} Nf4 $1 {[%emt 0:00:13]} 30. Qxa6 {[%emt 0:13:27]} Qg6 $1 {[%emt 0:00:13]} 31. Qxa5 {[%emt 0:00:39]} h4 $1 {[%emt 0:00:17]} 32. Rg1 $1 {[%emt 0:02:27]} (32. Qxc7+ $2 Rf7 $19) 32... Bxd4 {[%emt 0:01:17]} 33. Qxc7+ {[%emt 0:00:01]} Rf7 {[%emt 0:00:09]} 34. Qxf7+ $1 {[%emt 0:00:16]} Qxf7 {[%emt 0:00:21]} 35. cxd4 {[%emt 0:00:01]} hxg3 {[%emt 0:01:04]} 36. Bxg3 {[%emt 0:00:06]} Ng6 {[%emt 0:01:12]} (36... Rxa4 37. dxe5 Rxe4 38. Nxe4 $14) (36... Qxd5 $2 37. Bxf4 Rg8 38. Bg5 $18 (38. dxe5 Rxg1+ 39. Kxg1 Qg8+ 40. Kf2 d5 $16)) 37. Rg4 {[%emt 0:02:13]} Rxa4 {[%emt 0:08:14]} (37... Qxd5 38. Bxe5 dxe5 39. Rxg6 $14) 38. Bf2 {[%emt 0:00:29]} exd4 {[%emt 0:03:17]} 39. Kh2 {[%emt 0:00:42]} Ra2 {[%emt 0:02:13]} 40. Ne4 {[%emt 0:00:29]} Qf5 {[%emt 0:00:44]} (40... Qxf3 $2 41. Ng5+ (41. Rxg6 $2 {loses.} Qxe4 42. Rg7+ Kh6 $19) 41... Kg7 42. Nxf3 $18) 41. Rxg6 {[%emt 0:04:44]} Qxg6 {[%emt 0:00:12]} 42. Rxg6 {[%emt 0:00:02]} Kxg6 {[%emt 0:00:14]} 43. Kxh3 {[%emt 0:00:23]} d3 {[%emt 0:01:03]} 44. Be3 {[%emt 0:01:11]} Ra5 $1 {[%emt 0:01:53]} 45. Nc3 {[%emt 0:07:04]} Ra3 {[%emt 0:03:55]} (45... Kf5 $11) 46. Bd2 $1 $16 {[%emt 0:00:30]} Kf5 {[%emt 0:00:32]} 47. Kg3 {[%emt 0:00:38]} Ra8 {[%emt 0:01:13]} 48. Nb5 $1 {[%emt 0:29:05]} Rg8+ {[%emt 0:02:15]} 49. Kf2 {[%emt 0:00:01]} Ke5 {[%emt 0:00:12]} 50. Ke3 $1 {[%emt 0:00:06]} Kxd5 {[%emt 0:00:13]} 51. Kxd3 {[%emt 0:00:05]} Rb8 {[%emt 0:02:44]} 52. Nd4 {[%emt 0:01:24]} Re8 {[%emt 0:00:35]} 53. Ne2 {[%emt 0:00:14]} Ke5 {[%emt 0:00:37]} 54. Bf4+ {[%emt 0:01:13]} Ke6 {[%emt 0:00:51]} 55. Bg3 {[%emt 0:00:19]} Ra8 {[%emt 0:00:31]} 56. Nd4+ {[%emt 0:00:27]} Kd5 {[%emt 0:02:40]} 57. Nb5 {[%emt 0:00:51]} Rg8 $2 {[%emt 0:00:31][%mdl 8192]} (57... Rb8 $16 58. Nxd6 Rb3+ 59. Ke2 Rb2+ 60. Kf1 Rb4) 58. Bf4 $1 $18 {[%emt 0:00:37]} (58. Bxd6 Kc6 $11) 58... Rf8 {[%emt 0:02:52]} 59. Ke3 $1 {[%emt 0:00:12]} ({And not} 59. Bxd6 Rxf3+ 60. Kc2 Rf2+ 61. Kd3 Rf3+ 62. Kc2 Rf2+ 63. Kd3 Rf3+ $11) 59... Re8+ {[%emt 0:00:12]} 60. Kf2 {[%emt 0:00:02]} Rf8 {[%emt 0:00:16]} 61. Bg3 {[%emt 0:15:13]} ({Inferior is} 61. Bxd6 Rxf3+ 62. Kxf3 Kc6 $11) 61... Rb8 {[%emt 0:15:42]} 62. Nxd6 {[%emt 0:00:23]} Rb2+ {[%emt 0:00:06]} 63. Kf1 {[%emt 0:00:28]} Ke6 {[%emt 0:00:53]} 64. Nc4 {[%emt 0:00:37]} Ra2 {[%emt 0:00:10]} 65. Ne3 {[%emt 0:00:53]} Kf6 {[%emt 0:00:16]} 66. Bf2 {[%emt 0:01:58]} Ke5 {[%emt 0:00:21]} 67. Kg2 {[%emt 0:00:05]} Kf4 {[%emt 0:00:15]} 68. Nd5+ {[%emt 0:00:07]} Ke5 {[%emt 0:00:49] [#]} 69. Nb4 $1 {[%emt 0:01:01]} Ra8 {[%emt 0:00:16]} 70. Be3 {[%emt 0:02:38]} Rg8+ {[%emt 0:01:16]} 71. Kf2 {[%emt 0:00:01]} Rc8 {[%emt 0:00:10]} 72. Nd3+ {[%emt 0:00:14]} Kf5 {[%emt 0:00:08]} 73. Nc5 {[%emt 0:00:38]} Ra8 {[%emt 0:00:19]} 74. Ne4 {[%emt 0:00:42]} Ra4 {[%emt 0:00:43]} 75. Ng3+ {[%emt 0:01:04]} Ke5 {[%emt 0:00:24]} 76. Kg2 {[%emt 0:00:48]} Rb4 {[%emt 0:01:56]} 77. Bg5 {[%emt 0:02:53]} (77. Kh3 $142 Ra4 78. Bg5) 77... Ra4 {[%emt 0:00:20]} 78. Kh3 {[%emt 0:00:02]} Rb4 {[%emt 0:00:31]} 79. Bd2 {[%emt 0:00:05]} Rc4 {[%emt 0:00:28]} 80. Nh5 {[%emt 0:00:18]} Kf5 {[%emt 0:01:08] [#]} 81. f4 $1 {[%emt 0:00:47]} Rd4 {[%emt 0:01:20]} 82. Ng3+ {[%emt 0:00:06]} Kg6 {[%emt 0:00:19]} 83. Be3 {[%emt 0:00:26]} Rd3 {[%emt 0:00:31]} 84. Bb6 {[%emt 0:00:15]} Rb3 {[%emt 0:00:27]} 85. Bd4 {[%emt 0:00:02]} Rb4 {[%emt 0:00:11]} 86. Be5 {[%emt 0:00:13]} Ra4 {[%emt 0:00:06]} 87. Kg4 {[%emt 0:00:01]} Rb4 {[%emt 0:00:08]} 88. Nf5 {[%emt 0:00:26]} Ra4 {[%emt 0:00:14]} 89. Nh4+ {[%emt 0:00:02]} Kf7 {[%emt 0:00:21]} 90. Kf5 {[%emt 0:00:01]} Ra5 {[%emt 0:00:45]} 91. Nf3 {[%emt 0:00:03]} Rb5 {[%emt 0:00:11]} 92. Ng5+ {[%emt 0:00:04]} Ke7 {[%emt 0:00:14]} 93. Kg6 {[%emt 0:00:24]} Rb6+ {[%emt 0:00:27]} 94. Kg7 {[%emt 0:00:06]} Rb5 {[%emt 0:00:10]} 95. Bf6+ {[%emt 0:00:24]} Ke8 {[%emt 0:00:16]} 96. Kg6 {[%emt 0:00:25]} Kf8 {[%emt 0:00:16]} 97. Bd4 {[%emt 0:00:57]} Rb7 {[%emt 0:02:19]} 98. f5 {[%emt 0:00:42]} Kg8 {[%emt 0:00:13]} 99. f6 {[%emt 0:00:13]} (99. Ne6 $142 Re7 100. Bc5 Rd7 101. f6 Rf7 102. Be7 Rh7 103. Ng5 Rg7+ 104. Kf5) 99... Rg7+ {[%emt 0:00:11]} 100. Kf5 {[%emt 0:00:02]} Re7 {[%emt 0:00:23]} 101. Bc5 {[%emt 0:00:28]} Rc7 {[%emt 0:00:27]} 102. Be7 {[%emt 0:00:24]} Rc8 {[%emt 0:00:06]} 103. Kg6 {[%emt 0:00:47]} Rc6 {[%emt 0:00:09]} 104. Nf7 {[%emt 0:00:17]} Re6 {[%emt 0:00:41]} 105. Nh6+ {[%emt 0:00:03]} Kh8 {[%emt 0:00:10]} 106. Bf8 {[%emt 0:00:18]} Rxf6+ {[%emt 0:00:11]} 107. Kxf6 {[%emt 0:00:01]} Kh7 {[%emt 0:00:09]} 108. Ng4 {[%emt 0:00:28]} Kg8 {[%emt 0:00:08]} 109. Bc5 {[%emt 0:00:06]} Kh7 {[%emt 0:00:09]} 110. Kf7 {[%emt 0:00:05]} Kh8 {[%emt 0:00:05]} 111. Kg6 {[%emt 0:00:04]} 1-0